[Event "Titled Tuesday Blitz April 18 Late 2023"]
[White "Tokman, Ariel"]
[Black "Ng, Gary"]
[WhiteFideId "117420"]
[BlackFideId "2604914"]
[WhiteElo "2263"]
[BlackElo "2308"]
[Result "1-0"]
[Round "03"]
[TimeControl "180+2"]
[Date "2023.04.18"]
[WhiteClock "0:00:11"]
[BlackClock "0:00:08"]

1. e4 {[%clk 0:03:00]}  b6 {[%clk 0:02:04]} 2. Bc4 {[%clk 0:02:55]}  Bb7 {[%clk 0:02:05]} 3. d3 {[%clk 0:02:55]}  e6 {[%clk 0:02:06]} 4. a3 {[%clk 0:02:54]}  Nf6 {[%clk 0:02:06]} 5. Nf3 {[%clk 0:02:53]}  d5 {[%clk 0:02:06]} 6. exd5 {[%clk 0:02:54]}  exd5 {[%clk 0:02:07]} 7. Bb3 {[%clk 0:02:53]}  Bd6 {[%clk 0:02:05]} 8. O-O {[%clk 0:02:51]}  O-O {[%clk 0:02:04]} 9. Bg5 {[%clk 0:02:51]}  h6 {[%clk 0:02:04]} 10. Bh4 {[%clk 0:02:51]}  Nbd7 {[%clk 0:02:04]} 11. Nc3 {[%clk 0:02:51]}  c6 {[%clk 0:02:03]} 12. Re1 {[%clk 0:02:37]}  Qc7 {[%clk 0:02:03]} 13. Bg3 {[%clk 0:02:34]}  Rfe8 {[%clk 0:02:02]} 14. Nd4 {[%clk 0:02:19]}  Rxe1+ {[%clk 0:01:56]} 15. Qxe1 {[%clk 0:02:20]}  Re8 {[%clk 0:01:56]} 16. Qd2 {[%clk 0:02:19]}  Nc5 {[%clk 0:01:49]} 17. Ba2 {[%clk 0:02:16]}  Bxg3 {[%clk 0:01:44]} 18. hxg3 {[%clk 0:02:16]}  Qe5 {[%clk 0:01:45]} 19. Nf3 {[%clk 0:02:10]}  Qd6 {[%clk 0:01:32]} 20. Re1 {[%clk 0:02:09]}  Rxe1+ {[%clk 0:01:28]} 21. Qxe1 {[%clk 0:02:10]}  Bc8 {[%clk 0:01:28]} 22. Qe5 {[%clk 0:02:04]}  Qxe5 {[%clk 0:01:11]} 23. Nxe5 {[%clk 0:02:05]}  Bd7 {[%clk 0:01:11]} 24. Nxd7 {[%clk 0:02:02]}  Nfxd7 {[%clk 0:01:07]} 25. f3 {[%clk 0:02:03]}  Kf8 {[%clk 0:01:07]} 26. b4 {[%clk 0:01:53]}  Ne6 {[%clk 0:01:05]} 27. b5 {[%clk 0:01:53]}  cxb5 {[%clk 0:00:55]} 28. Nxd5 {[%clk 0:01:37]}  Nd4 {[%clk 0:00:46]} 29. Ne3 {[%clk 0:01:23]}  Ke7 {[%clk 0:00:37]} 30. Kf2 {[%clk 0:01:21]}  g6 {[%clk 0:00:25]} 31. c3 {[%clk 0:01:16]}  Nc6 {[%clk 0:00:23]} 32. d4 {[%clk 0:01:04]}  Na5 {[%clk 0:00:20]} 33. Nd5+ {[%clk 0:00:55]}  Kd6 {[%clk 0:00:20]} 34. Nb4 {[%clk 0:00:53]}  f6 {[%clk 0:00:19]} 35. Ke2 {[%clk 0:00:52]}  Nb8 {[%clk 0:00:17]} 36. Kd3 {[%clk 0:00:51]}  Nbc6 {[%clk 0:00:17]} 37. Nxc6 {[%clk 0:00:48]}  Nxc6 {[%clk 0:00:18]} 38. Bf7 {[%clk 0:00:47]}  g5 {[%clk 0:00:18]} 39. Ke4 {[%clk 0:00:48]}  Ne7 {[%clk 0:00:18]} 40. Be8 {[%clk 0:00:46]}  f5+ {[%clk 0:00:19]} 41. Kd3 {[%clk 0:00:45]}  a6 {[%clk 0:00:19]} 42. Bf7 {[%clk 0:00:45]}  Nc6 {[%clk 0:00:18]} 43. Be8 {[%clk 0:00:42]}  Ne7 {[%clk 0:00:18]} 44. Kc2 {[%clk 0:00:37]}  Nd5 {[%clk 0:00:17]} 45. Kd2 {[%clk 0:00:35]}  Nf6 {[%clk 0:00:17]} 46. Bf7 {[%clk 0:00:32]}  Ke7 {[%clk 0:00:18]} 47. Bg6 {[%clk 0:00:31]}  Ke6 {[%clk 0:00:18]} 48. Kd3 {[%clk 0:00:21]}  Nd5 {[%clk 0:00:18]} 49. Bh7 {[%clk 0:00:17]}  Nf6 {[%clk 0:00:16]} 50. Bg6 {[%clk 0:00:16]}  Nd5 {[%clk 0:00:16]} 51. Be8 {[%clk 0:00:15]}  f4 {[%clk 0:00:14]} 52. g4 {[%clk 0:00:11]}  Kd6 {[%clk 0:00:14]} 53. a4 {[%clk 0:00:11]}  bxa4 {[%clk 0:00:14]} 54. Bxa4 {[%clk 0:00:10]}  b5 {[%clk 0:00:14]} 55. Bb3 {[%clk 0:00:10]}  Nf6 {[%clk 0:00:14]} 56. Bf7 {[%clk 0:00:07]}  Kc6 {[%clk 0:00:13]} 57. c4 {[%clk 0:00:07]}  bxc4+ {[%clk 0:00:12]} 58. Kxc4 {[%clk 0:00:07]}  Kd6 {[%clk 0:00:13]} 59. Bg6 {[%clk 0:00:06]}  Nd7 {[%clk 0:00:13]} 60. Bc2 {[%clk 0:00:06]}  Nb6+ {[%clk 0:00:13]} 61. Kd3 {[%clk 0:00:06]}  a5 {[%clk 0:00:12]} 62. Bb3 {[%clk 0:00:06]}  a4 {[%clk 0:00:12]} 63. Ba2 {[%clk 0:00:06]}  a3 {[%clk 0:00:10]} 64. Ke4 {[%clk 0:00:06]}  Na4 {[%clk 0:00:09]} 65. Kf5 {[%clk 0:00:06]}  Nc3 {[%clk 0:00:09]} 66. Bb3 {[%clk 0:00:07]}  a2 {[%clk 0:00:09]} 67. Bxa2 {[%clk 0:00:08]}  Nxa2 {[%clk 0:00:10]} 68. Kg6 {[%clk 0:00:08]}  Nc1 {[%clk 0:00:06]} 69. Kxh6 {[%clk 0:00:09]}  Nd3 {[%clk 0:00:05]} 70. Kxg5 {[%clk 0:00:10]}  Kd5 {[%clk 0:00:06]} 71. Kf5 {[%clk 0:00:10]}  Kxd4 {[%clk 0:00:07]} 72. g5 {[%clk 0:00:11]}  Ke3 {[%clk 0:00:06]} 73. g6 {[%clk 0:00:11]}  Ne1 {[%clk 0:00:06]} 74. g7 {[%clk 0:00:11]}  Nxg2 {[%clk 0:00:07]} 75. g8=Q {[%clk 0:00:12]}  Nh4+ {[%clk 0:00:07]} 76. Kg4 {[%clk 0:00:11]}  Nxf3 {[%clk 0:00:08]} 77. Qb3+ {[%clk 0:00:11]} 1-0


[Site "https://www.chess.com"]

[Event "Titled Tuesday Blitz April 18 Late 2023"]
[White "Manukyan, Artyom"]
[Black "Bueno, Alfeu Junior Varela"]
[WhiteFideId "13305786"]
[BlackFideId "2108879"]
[WhiteElo "2078"]
[BlackElo "2175"]
[Result "1-0"]
[Round "03"]
[TimeControl "180+2"]
[Date "2023.04.18"]
[WhiteClock "0:02:51"]
[BlackClock "0:01:13"]

1. e4 {[%clk 0:02:57]}  e6 {[%clk 0:03:00]} 2. d4 {[%clk 0:02:57]}  d5 {[%clk 0:03:01]} 3. Bd3 {[%clk 0:02:57]}  dxe4 {[%clk 0:03:00]} 4. Bxe4 {[%clk 0:02:58]}  c5 {[%clk 0:03:00]} 5. Nf3 {[%clk 0:02:58]}  Nf6 {[%clk 0:02:59]} 6. Bd3 {[%clk 0:02:56]}  cxd4 {[%clk 0:02:58]} 7. Nxd4 {[%clk 0:02:57]}  Bc5 {[%clk 0:02:56]} 8. Nb3 {[%clk 0:02:57]}  Bb6 {[%clk 0:02:56]} 9. Nc3 {[%clk 0:02:57]}  Nc6 {[%clk 0:02:51]} 10. Bg5 {[%clk 0:02:57]}  e5 {[%clk 0:02:51]} 11. O-O {[%clk 0:02:55]}  O-O {[%clk 0:02:50]} 12. Ne4 {[%clk 0:02:54]}  Kh8 {[%clk 0:02:40]} 13. Nxf6 {[%clk 0:02:53]}  gxf6 {[%clk 0:02:38]} 14. Qh5 {[%clk 0:02:54]}  Qxd3 {[%clk 0:01:15]} 15. Bxf6+ {[%clk 0:02:50]}  Kg8 {[%clk 0:01:13]} 16. cxd3 {[%clk 0:02:51]} 1-0


[Site "https://www.chess.com"]

[Event "Titled Tuesday Blitz April 18 Late 2023"]
[White "Vanek, Tomas"]
[Black "Gatterer, Florian"]
[WhiteFideId "313459"]
[BlackFideId "811688"]
[WhiteElo "2052"]
[BlackElo "2221"]
[Result "1/2-1/2"]
[Round "03"]
[TimeControl "180+2"]
[Date "2023.04.18"]
[WhiteClock "0:02:42"]
[BlackClock "0:02:41"]

1. a3 {[%clk 0:02:59]}  c5 {[%clk 0:02:55]} 2. e4 {[%clk 0:02:58]}  g6 {[%clk 0:02:53]} 3. f4 {[%clk 0:02:55]}  Bg7 {[%clk 0:02:50]} 4. Nf3 {[%clk 0:02:54]}  d6 {[%clk 0:02:51]} 5. Bc4 {[%clk 0:02:52]}  e6 {[%clk 0:02:49]} 6. O-O {[%clk 0:02:52]}  Ne7 {[%clk 0:02:49]} 7. Qe2 {[%clk 0:02:51]}  O-O {[%clk 0:02:47]} 8. c3 {[%clk 0:02:46]}  d5 {[%clk 0:02:47]} 9. Ba2 {[%clk 0:02:42]}  dxe4 {[%clk 0:02:40]} 10. Qxe4 {[%clk 0:02:42]}  Nbc6 {[%clk 0:02:41]} 1/2-1/2


[Site "https://www.chess.com"]

[Event "Titled Tuesday Blitz April 18 Late 2023"]
[White "Alexikov, Alexander"]
[Black "Vivekananthan, Anish"]
[WhiteFideId "14103958"]
[BlackFideId "2090775"]
[WhiteElo "2186"]
[BlackElo "2827"]
[Result "0-1"]
[Round "03"]
[TimeControl "180+2"]
[Date "2023.04.18"]
[WhiteClock "0:00:01"]
[BlackClock "0:00:08"]

1. e4 {[%clk 0:03:00]}  c5 {[%clk 0:02:48]} 2. Nf3 {[%clk 0:03:00]}  d6 {[%clk 0:02:48]} 3. Bb5+ {[%clk 0:02:58]}  Nd7 {[%clk 0:02:47]} 4. O-O {[%clk 0:02:54]}  Nf6 {[%clk 0:02:46]} 5. d4 {[%clk 0:02:52]}  cxd4 {[%clk 0:02:45]} 6. Qxd4 {[%clk 0:02:51]}  a6 {[%clk 0:02:45]} 7. Bxd7+ {[%clk 0:02:49]}  Bxd7 {[%clk 0:02:42]} 8. c4 {[%clk 0:02:44]}  e6 {[%clk 0:02:37]} 9. Nc3 {[%clk 0:02:42]}  Be7 {[%clk 0:02:33]} 10. Bg5 {[%clk 0:02:39]}  Qc7 {[%clk 0:02:31]} 11. Rac1 {[%clk 0:02:33]}  Rc8 {[%clk 0:02:29]} 12. b3 {[%clk 0:02:32]}  O-O {[%clk 0:02:28]} 13. Rfd1 {[%clk 0:02:31]}  Rfd8 {[%clk 0:02:18]} 14. h3 {[%clk 0:02:12]}  Qa5 {[%clk 0:02:11]} 15. Bd2 {[%clk 0:01:32]}  Qh5 {[%clk 0:02:04]} 16. Ne2 {[%clk 0:01:13]}  Bc6 {[%clk 0:01:32]} 17. Ng3 {[%clk 0:01:09]}  Qc5 {[%clk 0:01:25]} 18. Qd3 {[%clk 0:01:08]}  Nd7 {[%clk 0:01:09]} 19. Qe2 {[%clk 0:00:50]}  Qb6 {[%clk 0:01:00]} 20. Be3 {[%clk 0:00:49]}  Nc5 {[%clk 0:00:55]} 21. Rb1 {[%clk 0:00:41]}  a5 {[%clk 0:00:54]} 22. Qc2 {[%clk 0:00:32]}  h6 {[%clk 0:00:44]} 23. a3 {[%clk 0:00:31]}  Qc7 {[%clk 0:00:44]} 24. Rd2 {[%clk 0:00:26]}  a4 {[%clk 0:00:39]} 25. b4 {[%clk 0:00:25]}  Nb3 {[%clk 0:00:39]} 26. Rdd1 {[%clk 0:00:24]}  Be8 {[%clk 0:00:36]} 27. Nd4 {[%clk 0:00:12]}  Qxc4 {[%clk 0:00:28]} 28. Qxc4 {[%clk 0:00:11]}  Rxc4 {[%clk 0:00:29]} 29. Nxb3 {[%clk 0:00:10]}  axb3 {[%clk 0:00:30]} 30. Rxb3 {[%clk 0:00:07]}  Ba4 {[%clk 0:00:29]} 31. Rbd3 {[%clk 0:00:08]}  Bxd1 {[%clk 0:00:29]} 32. Rxd1 {[%clk 0:00:08]}  Ra8 {[%clk 0:00:30]} 33. Bc1 {[%clk 0:00:06]}  Bf6 {[%clk 0:00:27]} 34. Kf1 {[%clk 0:00:04]}  Rac8 {[%clk 0:00:19]} 35. Be3 {[%clk 0:00:03]}  Be7 {[%clk 0:00:11]} 36. f3 {[%clk 0:00:03]}  Rc3 {[%clk 0:00:11]} 37. Kf2 {[%clk 0:00:03]}  Rxa3 {[%clk 0:00:11]} 38. Bd2 {[%clk 0:00:01]}  Ra2 {[%clk 0:00:11]} 39. Nf1 {[%clk 0:00:01]}  d5 {[%clk 0:00:10]} 40. exd5 {[%clk 0:00:01]}  Bxb4 {[%clk 0:00:10]} 41. Ke3 {[%clk 0:00:01]}  Bc5+ {[%clk 0:00:08]} 0-1


[Site "https://www.chess.com"]

[Event "Titled Tuesday Blitz April 18 Late 2023"]
[White "Msellek, Ilyass"]
[Black "Fajdetic, Hrvoje"]
[WhiteFideId "675938"]
[BlackFideId "14501945"]
[WhiteElo "2302"]
[BlackElo "2185"]
[Result "0-1"]
[Round "03"]
[TimeControl "180+2"]
[Date "2023.04.18"]
[WhiteClock "0:01:04"]
[BlackClock "0:00:05"]

1. Nf3 {[%clk 0:03:00]}  f5 {[%clk 0:02:56]} 2. d3 {[%clk 0:02:58]}  d6 {[%clk 0:02:52]} 3. e4 {[%clk 0:02:59]}  e5 {[%clk 0:02:50]} 4. Nc3 {[%clk 0:02:50]}  Nf6 {[%clk 0:02:49]} 5. exf5 {[%clk 0:02:45]}  Bxf5 {[%clk 0:02:49]} 6. d4 {[%clk 0:02:45]}  exd4 {[%clk 0:02:38]} 7. Nxd4 {[%clk 0:02:37]}  Bd7 {[%clk 0:02:02]} 8. Bc4 {[%clk 0:02:34]}  Qe7+ {[%clk 0:01:57]} 9. Be3 {[%clk 0:02:30]}  Nc6 {[%clk 0:01:55]} 10. O-O {[%clk 0:02:28]}  O-O-O {[%clk 0:01:45]} 11. Ndb5 {[%clk 0:02:22]}  a6 {[%clk 0:01:38]} 12. a4 {[%clk 0:02:19]}  Ng4 {[%clk 0:01:34]} 13. Nd5 {[%clk 0:02:11]}  Qh4 {[%clk 0:01:29]} 14. h3 {[%clk 0:02:05]}  Nxe3 {[%clk 0:01:27]} 15. Nxe3 {[%clk 0:01:59]}  axb5 {[%clk 0:01:12]} 16. axb5 {[%clk 0:01:58]}  Nb8 {[%clk 0:01:08]} 17. Ra8 {[%clk 0:01:55]}  Re8 {[%clk 0:00:33]} 18. Qa1 {[%clk 0:01:51]}  Qd4 {[%clk 0:00:22]} 19. Qa7 {[%clk 0:01:52]}  Qxa7 {[%clk 0:00:22]} 20. Rxa7 {[%clk 0:01:50]}  c6 {[%clk 0:00:14]} 21. b6 {[%clk 0:01:49]}  d5 {[%clk 0:00:14]} 22. Ra8 {[%clk 0:01:18]}  Bc5 {[%clk 0:00:12]} 23. b4 {[%clk 0:01:14]}  Bxb6 {[%clk 0:00:12]} 24. Bb3 {[%clk 0:01:13]}  Bxe3 {[%clk 0:00:07]} 25. fxe3 {[%clk 0:01:14]}  Rhf8 {[%clk 0:00:07]} 26. Rf7 {[%clk 0:01:15]}  Rxf7 {[%clk 0:00:07]} 27. e4 {[%clk 0:01:14]}  Rxe4 {[%clk 0:00:07]} 28. b5 {[%clk 0:01:14]}  Re2 {[%clk 0:00:07]} 29. bxc6 {[%clk 0:01:13]}  Bxc6 {[%clk 0:00:08]} 30. Ra1 {[%clk 0:01:06]}  Rff2 {[%clk 0:00:08]} 31. c3 {[%clk 0:01:05]}  Rxg2+ {[%clk 0:00:08]} 32. Kf1 {[%clk 0:01:06]}  Rgf2+ {[%clk 0:00:06]} 33. Kg1 {[%clk 0:01:06]}  Rh2 {[%clk 0:00:06]} 34. Bd1 {[%clk 0:01:05]}  Rd2 {[%clk 0:00:06]} 35. Bg4+ {[%clk 0:01:05]}  Kc7 {[%clk 0:00:05]} 36. Re1 {[%clk 0:01:05]}  d4 {[%clk 0:00:05]} 37. cxd4 {[%clk 0:01:04]}  Rh1# {[%clk 0:00:05]} 0-1


[Site "https://www.chess.com"]

[Event "Titled Tuesday Blitz April 18 Late 2023"]
[White "Lopez Gracia, Fernando"]
[Black "Li, Hui"]
[WhiteFideId "2207184"]
[BlackFideId "15400310"]
[WhiteElo "2537"]
[BlackElo "1967"]
[Result "1/2-1/2"]
[Round "03"]
[TimeControl "180+2"]
[Date "2023.04.18"]
[WhiteClock "0:00:47"]
[BlackClock "0:00:04"]

1. c4 {[%clk 0:03:00]}  e6 {[%clk 0:01:55]} 2. Nf3 {[%clk 0:02:58]}  d5 {[%clk 0:01:56]} 3. e3 {[%clk 0:02:58]}  Nf6 {[%clk 0:01:56]} 4. b3 {[%clk 0:02:59]}  Be7 {[%clk 0:01:57]} 5. g3 {[%clk 0:02:59]}  O-O {[%clk 0:01:57]} 6. Bg2 {[%clk 0:02:59]}  c5 {[%clk 0:01:53]} 7. Bb2 {[%clk 0:02:59]}  b6 {[%clk 0:01:53]} 8. O-O {[%clk 0:02:58]}  Bb7 {[%clk 0:01:53]} 9. cxd5 {[%clk 0:02:58]}  Bxd5 {[%clk 0:01:51]} 10. d4 {[%clk 0:02:58]}  Nbd7 {[%clk 0:01:50]} 11. Nc3 {[%clk 0:02:57]}  Bb7 {[%clk 0:01:50]} 12. Qe2 {[%clk 0:02:55]}  cxd4 {[%clk 0:01:47]} 13. Nxd4 {[%clk 0:02:54]}  Bxg2 {[%clk 0:01:46]} 14. Kxg2 {[%clk 0:02:55]}  Qc7 {[%clk 0:01:46]} 15. Rac1 {[%clk 0:02:54]}  Qb7+ {[%clk 0:01:46]} 16. Qf3 {[%clk 0:02:53]}  Qxf3+ {[%clk 0:01:45]} 17. Kxf3 {[%clk 0:02:54]}  Rac8 {[%clk 0:01:44]} 18. Rfd1 {[%clk 0:02:54]}  a6 {[%clk 0:01:41]} 19. Ke2 {[%clk 0:02:51]}  b5 {[%clk 0:01:38]} 20. Nb1 {[%clk 0:02:43]}  Nb6 {[%clk 0:01:38]} 21. Nd2 {[%clk 0:02:43]}  Rfd8 {[%clk 0:01:31]} 22. Nc6 {[%clk 0:02:39]}  Re8 {[%clk 0:01:25]} 23. Bd4 {[%clk 0:02:39]}  Nbd5 {[%clk 0:01:21]} 24. e4 {[%clk 0:02:37]}  Ba3 {[%clk 0:01:04]} 25. exd5 {[%clk 0:02:30]}  Bxc1 {[%clk 0:00:57]} 26. Rxc1 {[%clk 0:02:31]}  Nxd5 {[%clk 0:00:54]} 27. Rc2 {[%clk 0:02:20]}  f6 {[%clk 0:00:52]} 28. Ne4 {[%clk 0:02:16]}  Rc7 {[%clk 0:00:47]} 29. Nb4 {[%clk 0:02:10]}  Rxc2+ {[%clk 0:00:45]} 30. Nxc2 {[%clk 0:02:10]}  Rc8 {[%clk 0:00:46]} 31. Kd2 {[%clk 0:02:09]}  Rc6 {[%clk 0:00:41]} 32. f3 {[%clk 0:02:07]}  Kf7 {[%clk 0:00:39]} 33. Ne3 {[%clk 0:02:06]}  Nxe3 {[%clk 0:00:37]} 34. Bxe3 {[%clk 0:02:07]}  e5 {[%clk 0:00:34]} 35. b4 {[%clk 0:02:04]}  h6 {[%clk 0:00:27]} 36. Bc5 {[%clk 0:02:01]}  f5 {[%clk 0:00:24]} 37. Nc3 {[%clk 0:01:57]}  Ke6 {[%clk 0:00:23]} 38. Kd3 {[%clk 0:01:57]}  g5 {[%clk 0:00:23]} 39. a4 {[%clk 0:01:55]}  bxa4 {[%clk 0:00:21]} 40. Nxa4 {[%clk 0:01:55]}  h5 {[%clk 0:00:18]} 41. Nc3 {[%clk 0:01:54]}  a5 {[%clk 0:00:15]} 42. Ne2 {[%clk 0:01:45]}  axb4 {[%clk 0:00:15]} 43. Bxb4 {[%clk 0:01:45]}  Rb6 {[%clk 0:00:15]} 44. Bc3 {[%clk 0:01:45]}  Ra6 {[%clk 0:00:15]} 45. Bd2 {[%clk 0:01:34]}  Ra3+ {[%clk 0:00:15]} 46. Nc3 {[%clk 0:01:35]}  Kf6 {[%clk 0:00:13]} 47. Ke2 {[%clk 0:01:35]}  Rb3 {[%clk 0:00:13]} 48. Nd5+ {[%clk 0:01:34]}  Kg6 {[%clk 0:00:13]} 49. Ne7+ {[%clk 0:01:33]}  Kf6 {[%clk 0:00:13]} 50. Ng8+ {[%clk 0:01:31]}  Kg7 {[%clk 0:00:12]} 51. Ne7 {[%clk 0:01:30]}  Kf6 {[%clk 0:00:12]} 52. Nc6 {[%clk 0:01:29]}  Rb6 {[%clk 0:00:11]} 53. Nb4 {[%clk 0:01:27]}  Rb5 {[%clk 0:00:10]} 54. Nd3 {[%clk 0:01:25]}  Kg6 {[%clk 0:00:09]} 55. Bc3 {[%clk 0:01:25]}  e4 {[%clk 0:00:07]} 56. fxe4 {[%clk 0:01:23]}  fxe4 {[%clk 0:00:08]} 57. Nb4 {[%clk 0:01:15]}  Kf5 {[%clk 0:00:07]} 58. Ke3 {[%clk 0:01:16]}  Rc5 {[%clk 0:00:06]} 59. Bd4 {[%clk 0:01:15]}  Rc4 {[%clk 0:00:06]} 60. Nd5 {[%clk 0:01:13]}  Rc2 {[%clk 0:00:06]} 61. Ne7+ {[%clk 0:01:02]}  Kg4 {[%clk 0:00:05]} 62. Kxe4 {[%clk 0:00:58]}  Re2+ {[%clk 0:00:05]} 63. Be3 {[%clk 0:00:58]}  Rxh2 {[%clk 0:00:05]} 64. Bc5 {[%clk 0:00:50]}  Kxg3 {[%clk 0:00:04]} 65. Bd6+ {[%clk 0:00:51]}  Kg2 {[%clk 0:00:05]} 66. Bxh2 {[%clk 0:00:50]}  Kxh2 {[%clk 0:00:06]} 67. Kf5 {[%clk 0:00:50]}  g4 {[%clk 0:00:06]} 68. Nd5 {[%clk 0:00:49]}  g3 {[%clk 0:00:04]} 69. Nf4 {[%clk 0:00:49]}  h4 {[%clk 0:00:04]} 70. Kg4 {[%clk 0:00:49]}  h3 {[%clk 0:00:03]} 71. Nxh3 {[%clk 0:00:49]}  g2 {[%clk 0:00:03]} 72. Kh4 {[%clk 0:00:47]}  g1=Q {[%clk 0:00:04]} 73. Nxg1 {[%clk 0:00:47]} 1/2-1/2


[Site "https://www.chess.com"]

[Event "Titled Tuesday Blitz April 18 Late 2023"]
[White "Sarkar, Justin"]
[Black "Sonnenschein, Philipp"]
[WhiteFideId "2010011"]
[BlackFideId "16250877"]
[WhiteElo "2189"]
[BlackElo "2224"]
[Result "0-1"]
[Round "03"]
[TimeControl "180+2"]
[Date "2023.04.18"]
[WhiteClock "0:00:02"]
[BlackClock "0:00:17"]

1. d4 {[%clk 0:02:49]}  Nf6 {[%clk 0:02:59]} 2. c4 {[%clk 0:02:49]}  g6 {[%clk 0:02:59]} 3. Nc3 {[%clk 0:02:48]}  Bg7 {[%clk 0:03:00]} 4. e4 {[%clk 0:02:46]}  d6 {[%clk 0:03:00]} 5. f3 {[%clk 0:02:46]}  O-O {[%clk 0:02:59]} 6. Be3 {[%clk 0:02:45]}  c5 {[%clk 0:02:59]} 7. Nge2 {[%clk 0:02:40]}  Nc6 {[%clk 0:02:49]} 8. d5 {[%clk 0:02:38]}  Ne5 {[%clk 0:02:49]} 9. Ng3 {[%clk 0:02:38]}  h5 {[%clk 0:02:48]} 10. Be2 {[%clk 0:02:34]}  h4 {[%clk 0:02:48]} 11. Nf1 {[%clk 0:02:33]}  e6 {[%clk 0:02:33]} 12. Nd2 {[%clk 0:02:25]}  exd5 {[%clk 0:02:31]} 13. cxd5 {[%clk 0:02:23]}  b5 {[%clk 0:02:14]} 14. Nxb5 {[%clk 0:01:52]}  Rb8 {[%clk 0:02:14]} 15. Rb1 {[%clk 0:01:42]}  c4 {[%clk 0:01:49]} 16. Nxa7 {[%clk 0:01:08]}  Bd7 {[%clk 0:01:35]} 17. O-O {[%clk 0:01:00]}  Qa5 {[%clk 0:01:30]} 18. Nxc4 {[%clk 0:00:47]}  Qxa2 {[%clk 0:01:26]} 19. Ra1 {[%clk 0:00:27]}  Qb3 {[%clk 0:01:26]} 20. Qxb3 {[%clk 0:00:08]}  Rxb3 {[%clk 0:01:27]} 21. Bf4 {[%clk 0:00:07]}  Nxc4 {[%clk 0:01:11]} 22. Bxc4 {[%clk 0:00:07]}  Rb6 {[%clk 0:01:11]} 23. Nc6 {[%clk 0:00:04]}  Bxc6 {[%clk 0:01:05]} 24. dxc6 {[%clk 0:00:04]}  Rxc6 {[%clk 0:01:06]} 25. Rac1 {[%clk 0:00:04]}  Rfc8 {[%clk 0:01:03]} 26. Bb5 {[%clk 0:00:03]}  Rxc1 {[%clk 0:01:00]} 27. Rxc1 {[%clk 0:00:03]}  Rb8 {[%clk 0:01:00]} 28. Bc4 {[%clk 0:00:02]}  Rxb2 {[%clk 0:00:58]} 29. Bxd6 {[%clk 0:00:02]}  Nh5 {[%clk 0:00:53]} 30. e5 {[%clk 0:00:02]}  Nf4 {[%clk 0:00:49]} 31. Bf1 {[%clk 0:00:02]}  Bh6 {[%clk 0:00:44]} 32. Rc4 {[%clk 0:00:01]}  Nd5 {[%clk 0:00:33]} 33. Rc8+ {[%clk 0:00:02]}  Kh7 {[%clk 0:00:33]} 34. g3 {[%clk 0:00:02]}  Be3+ {[%clk 0:00:30]} 35. Kh1 {[%clk 0:00:02]}  Rb1 {[%clk 0:00:28]} 36. Kg2 {[%clk 0:00:03]}  h3+ {[%clk 0:00:27]} 37. Kxh3 {[%clk 0:00:03]}  Rxf1 {[%clk 0:00:27]} 38. f4 {[%clk 0:00:03]}  Rg1 {[%clk 0:00:24]} 39. Kg4 {[%clk 0:00:03]}  Bxf4 {[%clk 0:00:23]} 40. Rd8 {[%clk 0:00:02]}  Bh6 {[%clk 0:00:17]} 41. Rd7 {[%clk 0:00:02]}  Ne3+ {[%clk 0:00:17]} 0-1


[Site "https://www.chess.com"]